[Event "*** Titled Tuesday Blitz"]
[Site "Chess.com"]
[Date "2018.12.04"]
[Round "2"]
[White "dyziotomi99"]
[Black "Hikaru"]
[Result "0-1"]
[WhiteElo "2606"]
[BlackElo "3039"]
[TimeControl "180+2"]
[EndTime "13:24:40 PST"]
[Termination "Hikaru won by resignation"]

1. e4 {[%clk 0:03:01.9]} 1... e6 {[%clk 0:02:57.2]} 2. d4 {[%clk 0:03:02.1]}
2... d5 {[%clk 0:02:58.4]} 3. Nd2 {[%clk 0:03:03.2]} 3... b6 {[%clk 0:02:57.5]}
4. Ngf3 {[%clk 0:03:03.4]} 4... Nf6 {[%clk 0:02:58.7]} 5. Bd3 {[%clk 0:03:03.8]}
5... c5 {[%clk 0:02:58.9]} 6. exd5 {[%clk 0:02:59.8]} 6... Qxd5 {[%clk 0:02:56]}
7. O-O {[%clk 0:02:50.6]} 7... Bb7 {[%clk 0:02:54.4]} 8. c4 {[%clk 0:02:44.8]}
8... Qd8 {[%clk 0:02:54.9]} 9. Nb3 {[%clk 0:02:42.7]} 9... cxd4 {[%clk
0:02:55.1]} 10. Nbxd4 {[%clk 0:02:41.5]} 10... Bc5 {[%clk 0:02:55.3]} 11. Nb3
{[%clk 0:02:41]} 11... Be7 {[%clk 0:02:55.3]} 12. Qe2 {[%clk 0:02:40.5]} 12...
Qc7 {[%clk 0:02:55.4]} 13. Ne5 {[%clk 0:02:37.1]} 13... Nbd7 {[%clk 0:02:45.3]}
14. Nxd7 {[%clk 0:02:32.6]} 14... Nxd7 {[%clk 0:02:47.2]} 15. Be4 {[%clk
0:02:31.4]} 15... Rc8 {[%clk 0:02:37]} 16. Bxb7 {[%clk 0:02:31.4]} 16... Qxb7
{[%clk 0:02:38.9]} 17. Bf4 {[%clk 0:02:29.9]} 17... O-O {[%clk 0:02:38.6]} 18.
Rfd1 {[%clk 0:02:30.1]} 18... a5 {[%clk 0:02:36.2]} 19. Nd4 {[%clk 0:02:27.3]}
19... Nc5 {[%clk 0:02:25.6]} 20. Nb5 {[%clk 0:02:24.9]} 20... Rfd8 {[%clk
0:02:26.4]} 21. Rxd8+ {[%clk 0:02:15]} 21... Rxd8 {[%clk 0:02:21]} 22. Rd1
{[%clk 0:02:13.2]} 22... Rxd1+ {[%clk 0:02:21.5]} 23. Qxd1 {[%clk 0:02:14.1]}
23... Qe4 {[%clk 0:02:23.4]} 24. Bd6 {[%clk 0:02:11.9]} 24... Bf6 {[%clk
0:02:10]} 25. b3 {[%clk 0:01:58.6]} 25... Nd3 {[%clk 0:02:01.3]} 26. Bc7 {[%clk
0:01:39.2]} 26... h5 {[%clk 0:01:47.4]} 27. Bxb6 {[%clk 0:01:26.2]} 27... Nf4
{[%clk 0:01:46]} 28. f3 {[%clk 0:01:25.3]} 28... Qg6 {[%clk 0:01:47.1]} 29. g3
{[%clk 0:01:17.6]} 29... h4 {[%clk 0:01:47.8]} 30. Bf2 {[%clk 0:01:17.5]} 30...
Nd3 {[%clk 0:01:43.4]} 31. Qe2 {[%clk 0:01:06.3]} 31... Nc1 {[%clk 0:01:18.3]}
32. Qe4 {[%clk 0:01:05.4]} 32... Qxe4 {[%clk 0:01:19.1]} 33. fxe4 {[%clk
0:01:06.5]} 33... Nxa2 {[%clk 0:01:20.2]} 34. Be1 {[%clk 0:01:02.2]} 34... Nc1
{[%clk 0:01:17.2]} 35. Bxa5 {[%clk 0:01:01.9]} 35... Nxb3 {[%clk 0:01:18.6]} 36.
Bc3 {[%clk 0:00:52.4]} 36... Be7 {[%clk 0:01:10.8]} 37. Kg2 {[%clk 0:00:51]}
37... Kf8 {[%clk 0:01:08.4]} 38. Kf3 {[%clk 0:00:47.3]} 38... h3 {[%clk
0:01:05.9]} 39. Kg4 {[%clk 0:00:45.8]} 39... Nc5 {[%clk 0:01:06.9]} 40. e5
{[%clk 0:00:41.3]} 40... Na4 {[%clk 0:01:04.6]} 41. Bd4 {[%clk 0:00:40.5]} 41...
Bc5 {[%clk 0:01:05.8]} 42. Kxh3 {[%clk 0:00:38.8]} 42... Bxd4 {[%clk 0:01:03.6]}
43. Nxd4 {[%clk 0:00:39.9]} 43... Nb2 {[%clk 0:01:05]} 44. c5 {[%clk 0:00:40.1]}
44... Nd3 {[%clk 0:01:05.6]} 45. c6 {[%clk 0:00:38.8]} 45... Ke8 {[%clk
0:01:07.2]} 46. Nf3 {[%clk 0:00:37.9]} 46... Kd8 {[%clk 0:01:08.6]} 47. Kg4
{[%clk 0:00:35.8]} 47... Kc7 {[%clk 0:01:09.7]} 48. h4 {[%clk 0:00:35.2]} 48...
Kxc6 {[%clk 0:01:10.9]} 49. h5 {[%clk 0:00:34.7]} 49... Kd5 {[%clk 0:01:11.9]}
50. Kg5 {[%clk 0:00:31.2]} 50... Nxe5 {[%clk 0:01:10.5]} 51. Nh4 {[%clk
0:00:31.7]} 51... f6+ {[%clk 0:01:07.4]} 52. Kf4 {[%clk 0:00:32.8]} 52... Nf7
{[%clk 0:01:09]} 53. Ng6 {[%clk 0:00:32.2]} 53... e5+ {[%clk 0:01:09.9]} 54. Ke3
{[%clk 0:00:33.3]} 54... Nh6 {[%clk 0:01:10.6]} 55. Nh4 {[%clk 0:00:32.5]} 55...
Ke6 {[%clk 0:01:11.7]} 56. Kf3 {[%clk 0:00:32.7]} 56... f5 {[%clk 0:01:13.1]}
57. Ng6 {[%clk 0:00:33.6]} 57... Kf6 {[%clk 0:01:14.3]} 58. Nf8 {[%clk
0:00:32.6]} 58... Nf7 {[%clk 0:01:12.7]} 59. Nh7+ {[%clk 0:00:31.9]} 59... Ke6
{[%clk 0:01:11.5]} 60. Nf8+ {[%clk 0:00:32.6]} 60... Kd5 {[%clk 0:01:11.8]} 61.
Ke3 {[%clk 0:00:31.5]} 61... Nh6 {[%clk 0:01:08.7]} 62. Ng6 {[%clk 0:00:30.1]}
62... Ng4+ {[%clk 0:01:09.1]} 63. Kf3 {[%clk 0:00:27.8]} 63... Nf6 {[%clk
0:01:11]} 64. Ne7+ {[%clk 0:00:27.4]} 64... Ke6 {[%clk 0:01:11.5]} 65. Ng6
{[%clk 0:00:26.3]} 65... Nxh5 {[%clk 0:01:12]} 66. g4 {[%clk 0:00:27.7]} 66...
fxg4+ {[%clk 0:01:04.9]} 67. Kxg4 {[%clk 0:00:28.7]} 67... Nf6+ {[%clk
0:01:06.8]} 68. Kf3 {[%clk 0:00:29.5]} 68... Kf5 {[%clk 0:01:04.2]} 69. Ne7+
{[%clk 0:00:30.1]} 69... Kg5 {[%clk 0:01:05.2]} 70. Nc6 {[%clk 0:00:30.3]} 70...
Kf5 {[%clk 0:01:03.5]} 71. Ne7+ {[%clk 0:00:29.8]} 71... Ke6 {[%clk 0:01:05.1]}
72. Ng6 {[%clk 0:00:30.4]} 72... Ne8 {[%clk 0:01:06.7]} 73. Ke3 {[%clk
0:00:30.5]} 73... Nd6 {[%clk 0:01:06.9]} 74. Nf8+ {[%clk 0:00:31.3]} 74... Kf5
{[%clk 0:01:08.1]} 75. Nd7 {[%clk 0:00:31.9]} 75... g5 {[%clk 0:01:09.1]} 76.
Nb6 {[%clk 0:00:30.7]} 76... e4 {[%clk 0:01:06.1]} 77. Nd5 {[%clk 0:00:29.3]}
77... Ke5 {[%clk 0:01:07.3]} 78. Ne7 {[%clk 0:00:30.2]} 78... Nf5+ {[%clk
0:01:08.6]} 0-1

[Event "*** Titled Tuesday Blitz"]
[Site "Chess.com"]
[Date "2018.12.04"]
[Round "2"]
[White "AndrBaryshpolets"]
[Black "Thjop"]
[Result "1-0"]
[WhiteElo "2564"]
[BlackElo "2664"]
[TimeControl "180+2"]
[EndTime "13:24:45 PST"]
[Termination "AndrBaryshpolets won by resignation"]

1. d4 {[%clk 0:03:01.9]} 1... Nf6 {[%clk 0:03:00.5]} 2. c4 {[%clk 0:03:03.5]}
2... g6 {[%clk 0:03:00.3]} 3. Nc3 {[%clk 0:03:04]} 3... Bg7 {[%clk 0:03:01.5]}
4. g3 {[%clk 0:03:05]} 4... O-O {[%clk 0:03:02]} 5. Bg2 {[%clk 0:03:06.4]} 5...
d6 {[%clk 0:03:03.6]} 6. Nf3 {[%clk 0:03:07.6]} 6... Nc6 {[%clk 0:03:04.7]} 7.
O-O {[%clk 0:03:07.9]} 7... a6 {[%clk 0:03:04.1]} 8. d5 {[%clk 0:03:06.4]} 8...
Na5 {[%clk 0:03:04.5]} 9. Nd2 {[%clk 0:03:08.1]} 9... c5 {[%clk 0:03:04.2]} 10.
Rb1 {[%clk 0:03:09]} 10... b5 {[%clk 0:02:55.2]} 11. cxb5 {[%clk 0:02:45.8]}
11... axb5 {[%clk 0:02:57.1]} 12. Nxb5 {[%clk 0:02:47]} 12... Bf5 {[%clk
0:02:55.2]} 13. e4 {[%clk 0:02:46.3]} 13... Bc8 {[%clk 0:02:55.9]} 14. Re1
{[%clk 0:02:32.6]} 14... Ba6 {[%clk 0:02:51.4]} 15. Bf1 {[%clk 0:02:31.5]} 15...
Qb6 {[%clk 0:02:49.7]} 16. a4 {[%clk 0:02:32.1]} 16... Rfc8 {[%clk 0:02:42.6]}
17. b3 {[%clk 0:02:30.1]} 17... Nd7 {[%clk 0:02:26.8]} 18. Nc4 {[%clk
0:02:19.4]} 18... Qd8 {[%clk 0:02:20]} 19. Bd2 {[%clk 0:02:11.6]} 19... Nb7
{[%clk 0:02:04.3]} 20. Qc2 {[%clk 0:01:59.5]} 20... Bxb5 {[%clk 0:01:34.8]} 21.
axb5 {[%clk 0:02:01.4]} 21... Rcb8 {[%clk 0:01:29.5]} 22. Bc3 {[%clk 0:01:31.7]}
22... Bxc3 {[%clk 0:01:24.8]} 23. Qxc3 {[%clk 0:01:33.6]} 23... Na5 {[%clk
0:01:18]} 24. f4 {[%clk 0:00:57]} 24... Rxb5 {[%clk 0:01:11.3]} 25. Nxd6 {[%clk
0:00:57.1]} 25... Rb4 {[%clk 0:01:12.6]} 26. Nc4 {[%clk 0:00:56.3]} 26... Rab8
{[%clk 0:01:06]} 27. Nxa5 {[%clk 0:00:46.1]} 27... Qxa5 {[%clk 0:01:06.1]} 28.
Bc4 {[%clk 0:00:44.9]} 28... Qc7 {[%clk 0:00:59.9]} 29. e5 {[%clk 0:00:25.5]}
29... Nb6 {[%clk 0:00:57.9]} 30. Rbd1 {[%clk 0:00:21.7]} 30... Nxc4 {[%clk
0:00:50.4]} 31. bxc4 {[%clk 0:00:23.6]} 31... Rb3 {[%clk 0:00:51.1]} 32. Qc1
{[%clk 0:00:23.4]} 32... Rb2 {[%clk 0:00:42.1]} 33. Qe3 {[%clk 0:00:21]} 33...
R8b3 {[%clk 0:00:27.4]} 34. Rd3 {[%clk 0:00:20]} 34... Rxd3 {[%clk 0:00:23.8]}
35. Qxd3 {[%clk 0:00:21.9]} 35... Qa5 {[%clk 0:00:23.2]} 36. Re2 {[%clk
0:00:20]} 36... Qa1+ {[%clk 0:00:19.5]} 37. Kg2 {[%clk 0:00:21]} 37... Rxe2+
{[%clk 0:00:20.4]} 38. Qxe2 {[%clk 0:00:22.1]} 38... Qd4 {[%clk 0:00:21.8]} 39.
Kf3 {[%clk 0:00:22.1]} 39... Kg7 {[%clk 0:00:21.6]} 40. Qe4 {[%clk 0:00:20]}
40... Qd1+ {[%clk 0:00:21.9]} 41. Kg2 {[%clk 0:00:18.3]} 41... Qd2+ {[%clk
0:00:23]} 42. Kh3 {[%clk 0:00:17.7]} 42... h5 {[%clk 0:00:21.5]} 43. Qf3 {[%clk
0:00:08.3]} 43... Qd4 {[%clk 0:00:19.3]} 44. Qe2 {[%clk 0:00:09.2]} 44... Qc3
{[%clk 0:00:17.7]} 45. Kg2 {[%clk 0:00:10.5]} 45... Qd4 {[%clk 0:00:18.9]} 46.
Qc2 {[%clk 0:00:09]} 46... Qe3 {[%clk 0:00:18.1]} 47. h4 {[%clk 0:00:04]} 47...
Qd4 {[%clk 0:00:18.6]} 48. Qe2 {[%clk 0:00:05]} 48... Kh7 {[%clk 0:00:18]} 49.
Kh2 {[%clk 0:00:06.4]} 49... Kg7 {[%clk 0:00:19]} 50. Kg2 {[%clk 0:00:06.3]}
50... Kh7 {[%clk 0:00:20]} 51. Kh1 {[%clk 0:00:07]} 51... Kg7 {[%clk 0:00:20.6]}
52. Kh2 {[%clk 0:00:08.5]} 52... Kh7 {[%clk 0:00:21.4]} 53. f5 {[%clk
0:00:08.9]} 53... Kg7 {[%clk 0:00:19.4]} 54. fxg6 {[%clk 0:00:05.3]} 54... fxg6
{[%clk 0:00:21.3]} 55. Kg2 {[%clk 0:00:05.8]} 55... Kh7 {[%clk 0:00:22.1]} 56.
Kh2 {[%clk 0:00:05.9]} 56... Kg7 {[%clk 0:00:23.2]} 57. Kh1 {[%clk 0:00:07.5]}
57... Kh7 {[%clk 0:00:23.3]} 58. Kg2 {[%clk 0:00:07.4]} 58... Kg7 {[%clk
0:00:24.2]} 59. Kh2 {[%clk 0:00:08.8]} 59... Kh7 {[%clk 0:00:23.9]} 60. e6
{[%clk 0:00:10.2]} 60... Kg7 {[%clk 0:00:21.5]} 61. Qf3 {[%clk 0:00:11.3]} 61...
Qxc4 {[%clk 0:00:15.9]} 62. Qf7+ {[%clk 0:00:12.4]} 62... Kh6 {[%clk 0:00:16.6]}
63. Qf8+ {[%clk 0:00:14.1]} 63... Kh7 {[%clk 0:00:16.6]} 64. Qxe7+ {[%clk
0:00:15.9]} 64... Kh6 {[%clk 0:00:18]} 65. Qf8+ {[%clk 0:00:16.9]} 65... Kh7
{[%clk 0:00:19.1]} 66. Qf7+ {[%clk 0:00:17.6]} 66... Kh6 {[%clk 0:00:19.9]} 67.
Qf4+ {[%clk 0:00:15]} 67... Qxf4 {[%clk 0:00:19.5]} 68. gxf4 {[%clk 0:00:16.9]}
68... Kg7 {[%clk 0:00:21.4]} 69. Kg3 {[%clk 0:00:16.4]} 69... Kf6 {[%clk
0:00:21.5]} 70. Kf3 {[%clk 0:00:17.6]} 70... Ke7 {[%clk 0:00:22.8]} 71. Ke3
{[%clk 0:00:16.7]} 71... Kd6 {[%clk 0:00:24.7]} 72. Ke4 {[%clk 0:00:18]} 72...
c4 {[%clk 0:00:25.6]} 73. Kd4 {[%clk 0:00:19.4]} 73... c3 {[%clk 0:00:27.5]} 74.
Kxc3 {[%clk 0:00:20.7]} 74... Kxd5 {[%clk 0:00:29.4]} 75. e7 {[%clk 0:00:22.2]}
75... Ke6 {[%clk 0:00:31.3]} 76. e8=Q+ {[%clk 0:00:23.6]} 76... Kf5 {[%clk
0:00:33.2]} 77. Qe5+ {[%clk 0:00:24.6]} 77... Kg4 {[%clk 0:00:34.3]} 78. Qg5+
{[%clk 0:00:26.3]} 1-0

[Event "*** Titled Tuesday Blitz"]
[Site "Chess.com"]
[Date "2018.12.04"]
[Round "2"]
[White "abubakrtagelsir"]
[Black "b_6"]
[Result "1-0"]
[WhiteElo "2289"]
[BlackElo "2401"]
[TimeControl "180+2"]
[EndTime "13:24:51 PST"]
[Termination "abubakrtagelsir won by resignation"]

1. e4 {[%clk 0:03:00.1]} 1... e6 {[%clk 0:03:00.1]} 2. d4 {[%clk 0:03:00.8]}
2... d5 {[%clk 0:03:01.5]} 3. Nc3 {[%clk 0:03:02]} 3... Bb4 {[%clk 0:03:02.1]}
4. e5 {[%clk 0:03:02.8]} 4... Ne7 {[%clk 0:03:03]} 5. a3 {[%clk 0:03:03.3]} 5...
Bxc3+ {[%clk 0:03:04.3]} 6. bxc3 {[%clk 0:03:04.4]} 6... c5 {[%clk 0:03:06]} 7.
Qg4 {[%clk 0:03:04.7]} 7... O-O {[%clk 0:03:07.2]} 8. Bd3 {[%clk 0:03:05.3]}
8... f5 {[%clk 0:03:07.1]} 9. exf6 {[%clk 0:03:00.7]} 9... Rxf6 {[%clk
0:03:08.3]} 10. Bg5 {[%clk 0:03:00.9]} 10... Rf7 {[%clk 0:03:09.6]} 11. Qh5
{[%clk 0:03:01.6]} 11... g6 {[%clk 0:03:11]} 12. Qd1 {[%clk 0:02:14.9]} 12...
Qa5 {[%clk 0:03:10]} 13. Bd2 {[%clk 0:02:09.5]} 13... Nbc6 {[%clk 0:03:09.6]}
14. Nf3 {[%clk 0:02:09.3]} 14... e5 {[%clk 0:03:08.3]} 15. c4 {[%clk 0:02:01.4]}
15... Qa4 {[%clk 0:02:36.3]} 16. cxd5 {[%clk 0:01:57.5]} 16... Nxd5 {[%clk
0:02:32.6]} 17. c4 {[%clk 0:01:56]} 17... Qxd1+ {[%clk 0:02:19.7]} 18. Rxd1
{[%clk 0:01:56]} 18... Nf4 {[%clk 0:02:08.2]} 19. Bxf4 {[%clk 0:01:49.3]} 19...
Rxf4 {[%clk 0:01:24.1]} 20. d5 {[%clk 0:01:47.8]} 20... e4 {[%clk 0:01:16.6]}
21. dxc6 {[%clk 0:01:40.9]} 21... exf3 {[%clk 0:01:17.2]} 22. g3 {[%clk
0:01:32.5]} 22... Rf7 {[%clk 0:01:11]} 23. O-O {[%clk 0:01:31.3]} 23... bxc6
{[%clk 0:01:06.9]} 24. Be4 {[%clk 0:01:30.2]} 24... Be6 {[%clk 0:01:05.2]} 25.
Bxc6 {[%clk 0:01:29]} 25... Rc8 {[%clk 0:01:05.4]} 26. Bd5 {[%clk 0:01:28.2]}
26... Bxd5 {[%clk 0:01:03.4]} 27. Rxd5 {[%clk 0:01:28.6]} 27... Re7 {[%clk
0:00:49.7]} 28. h3 {[%clk 0:01:22.5]} 28... Kf7 {[%clk 0:00:43.6]} 29. g4 {[%clk
0:01:19]} 29... Re4 {[%clk 0:00:40.6]} 30. Rc1 {[%clk 0:01:12.1]} 30... Ke6
{[%clk 0:00:39.8]} 31. Rd3 {[%clk 0:01:10.4]} 31... Rf8 {[%clk 0:00:38.8]} 32.
Kh2 {[%clk 0:01:10.8]} 32... Rff4 {[%clk 0:00:39.1]} 33. Kg3 {[%clk 0:01:04.1]}
33... Rxc4 {[%clk 0:00:35.1]} 34. Rxc4 {[%clk 0:01:03.4]} 34... Rxc4 {[%clk
0:00:37]} 35. Kxf3 {[%clk 0:01:04.2]} 35... a5 {[%clk 0:00:36.1]} 36. Kg3 {[%clk
0:01:00.4]} 36... a4 {[%clk 0:00:35.8]} 37. f3 {[%clk 0:01:01.3]} 37... Rc1
{[%clk 0:00:28.6]} 38. Re3+ {[%clk 0:01:00.9]} 38... Kf6 {[%clk 0:00:27.8]} 39.
h4 {[%clk 0:01:00.7]} 39... Rb1 {[%clk 0:00:28.1]} 40. Kf4 {[%clk 0:00:57.1]}
40... Rb3 {[%clk 0:00:26.9]} 41. g5+ {[%clk 0:00:57.9]} 41... Kf7 {[%clk
0:00:27.8]} 42. Re5 {[%clk 0:00:58.4]} 42... c4 {[%clk 0:00:19.1]} 43. Rc5
{[%clk 0:00:54.4]} 43... c3 {[%clk 0:00:20.2]} 44. Ke5 {[%clk 0:00:54.8]} 44...
Rxa3 {[%clk 0:00:21]} 45. Rc7+ {[%clk 0:00:55.7]} 45... Ke8 {[%clk 0:00:22.2]}
46. Kd6 {[%clk 0:00:42.9]} 46... Kd8 {[%clk 0:00:18.8]} 47. Rxh7 {[%clk
0:00:42.9]} 47... Kc8 {[%clk 0:00:19.9]} 48. Ra7 {[%clk 0:00:41.5]} 48... Ra1
{[%clk 0:00:17]} 49. Rc7+ {[%clk 0:00:41.8]} 49... Kb8 {[%clk 0:00:16.8]} 50.
Rxc3 {[%clk 0:00:43.7]} 50... a3 {[%clk 0:00:18.1]} 51. Rb3+ {[%clk 0:00:34.9]}
51... Kc8 {[%clk 0:00:17.1]} 52. Rc3+ {[%clk 0:00:34.5]} 52... Kb7 {[%clk
0:00:17.5]} 53. Rb3+ {[%clk 0:00:32.8]} 53... Kc8 {[%clk 0:00:18.5]} 54. Ke6
{[%clk 0:00:25.6]} 54... Re1+ {[%clk 0:00:17.4]} 55. Kf6 {[%clk 0:00:25.7]}
55... a2 {[%clk 0:00:18.9]} 56. Ra3 {[%clk 0:00:24.5]} 56... a1=Q+ {[%clk
0:00:19.9]} 57. Rxa1 {[%clk 0:00:23.8]} 57... Rxa1 {[%clk 0:00:21.8]} 58. Kxg6
{[%clk 0:00:24.9]} 58... Ra6+ {[%clk 0:00:17.9]} 59. Kf7 {[%clk 0:00:25.3]}
59... Ra7+ {[%clk 0:00:18.5]} 60. Kf8 {[%clk 0:00:26.1]} 60... Rh7 {[%clk
0:00:17.8]} 61. g6 {[%clk 0:00:25.8]} 61... Rxh4 {[%clk 0:00:18.9]} 62. g7
{[%clk 0:00:26.8]} 62... Rf4+ {[%clk 0:00:20.1]} 63. Ke7 {[%clk 0:00:27.1]}
63... Rxf3 {[%clk 0:00:18.9]} 64. g8=Q+ {[%clk 0:00:27.2]} 64... Kc7 {[%clk
0:00:20.1]} 65. Qc4+ {[%clk 0:00:27.2]} 65... Kb6 {[%clk 0:00:17.6]} 66. Qb4+
{[%clk 0:00:23]} 66... Ka7 {[%clk 0:00:14]} 67. Qa5+ {[%clk 0:00:21.7]} 67...
Kb8 {[%clk 0:00:14]} 68. Qb6+ {[%clk 0:00:22.3]} 68... Kc8 {[%clk 0:00:14.4]}
69. Qc6+ {[%clk 0:00:23.3]} 1-0

[Event "*** Titled Tuesday Blitz"]
[Site "Chess.com"]
[Date "2018.12.04"]
[Round "2"]
[White "1stSecond"]
[Black "ajkom197"]
[Result "1/2-1/2"]
[WhiteElo "2620"]
[BlackElo "2377"]
[TimeControl "180+2"]
[EndTime "13:25:11 PST"]
[Termination "Game drawn by agreement"]

1. c4 {[%clk 0:03:00.8]} 1... e6 {[%clk 0:02:56.9]} 2. Nf3 {[%clk 0:03:00.5]}
2... Nf6 {[%clk 0:02:57.7]} 3. g3 {[%clk 0:03:01.9]} 3... Be7 {[%clk 0:02:58.9]}
4. Bg2 {[%clk 0:03:02.3]} 4... O-O {[%clk 0:03:00.5]} 5. O-O {[%clk 0:03:03.5]}
5... b6 {[%clk 0:03:02.1]} 6. d4 {[%clk 0:03:04]} 6... Bb7 {[%clk 0:03:03]} 7.
Nc3 {[%clk 0:03:02.7]} 7... Ne4 {[%clk 0:03:04.1]} 8. Bd2 {[%clk 0:03:03.2]}
8... d6 {[%clk 0:02:58.7]} 9. Rc1 {[%clk 0:02:50.3]} 9... Nd7 {[%clk 0:02:57.7]}
10. d5 {[%clk 0:02:45.6]} 10... Nxd2 {[%clk 0:02:53.4]} 11. Qxd2 {[%clk
0:02:42.7]} 11... e5 {[%clk 0:02:55.3]} 12. Ne1 {[%clk 0:02:38.6]} 12... f5
{[%clk 0:02:52.3]} 13. Nd3 {[%clk 0:02:26.6]} 13... a5 {[%clk 0:02:50.2]} 14. a3
{[%clk 0:02:24.6]} 14... Nc5 {[%clk 0:02:23.1]} 15. Qc2 {[%clk 0:02:16.7]} 15...
Nxd3 {[%clk 0:02:12.5]} 16. Qxd3 {[%clk 0:02:14.3]} 16... Bc8 {[%clk 0:02:14.4]}
17. b4 {[%clk 0:02:11.3]} 17... axb4 {[%clk 0:02:15.1]} 18. axb4 {[%clk
0:02:13.2]} 18... Bd7 {[%clk 0:02:16.2]} 19. Ra1 {[%clk 0:02:08.6]} 19... Qe8
{[%clk 0:02:08]} 20. Nb5 {[%clk 0:01:46.5]} 20... Bxb5 {[%clk 0:01:59.2]} 21.
cxb5 {[%clk 0:01:48.4]} 21... Bf6 {[%clk 0:01:48.7]} 22. Ra6 {[%clk 0:01:46.8]}
22... Qd7 {[%clk 0:01:36.8]} 23. e4 {[%clk 0:01:42.6]} 23... f4 {[%clk
0:01:35.1]} 24. Rfa1 {[%clk 0:01:30.2]} 24... Rae8 {[%clk 0:01:28.9]} 25. Qf1
{[%clk 0:01:29.5]} 25... g5 {[%clk 0:01:27.2]} 26. Ra7 {[%clk 0:01:28.4]} 26...
g4 {[%clk 0:01:18]} 27. Qc4 {[%clk 0:01:19.8]} 27... fxg3 {[%clk 0:01:05.4]} 28.
hxg3 {[%clk 0:00:48.7]} 28... Bd8 {[%clk 0:01:03]} 29. Qe2 {[%clk 0:00:39.8]}
29... Rf7 {[%clk 0:00:56.2]} 30. Ra8 {[%clk 0:00:38.8]} 30... Ref8 {[%clk
0:00:55.2]} 31. Rb8 {[%clk 0:00:32.6]} 31... Kg7 {[%clk 0:00:54.3]} 32. Raa8
{[%clk 0:00:33.5]} 32... Bg5 {[%clk 0:00:52.5]} 33. Rxf8 {[%clk 0:00:32.8]}
33... Rxf8 {[%clk 0:00:54.4]} 34. Rxf8 {[%clk 0:00:33.9]} 34... Kxf8 {[%clk
0:00:53.9]} 35. Bf1 {[%clk 0:00:34.8]} 35... h5 {[%clk 0:00:37.4]} 36. Qc2
{[%clk 0:00:29.8]} 36... Kg7 {[%clk 0:00:35.7]} 37. Be2 {[%clk 0:00:30.6]} 37...
Qe7 {[%clk 0:00:30.6]} 38. Qc6 {[%clk 0:00:29.5]} 38... Qd8 {[%clk 0:00:31.1]}
39. Kg2 {[%clk 0:00:28.4]} 39... Qe7 {[%clk 0:00:31.9]} 40. Qc3 {[%clk
0:00:21.6]} 40... Qd8 {[%clk 0:00:31.2]} 41. f3 {[%clk 0:00:22.4]} 41... gxf3+
{[%clk 0:00:19]} 42. Qxf3 {[%clk 0:00:24.3]} 42... h4 {[%clk 0:00:20]} 43. Qh5
{[%clk 0:00:23.6]} 43... hxg3 {[%clk 0:00:20.5]} 44. Bg4 {[%clk 0:00:25.2]}
44... Qf6 {[%clk 0:00:15.3]} 45. Bf5 {[%clk 0:00:26.4]} 45... Qh6 {[%clk
0:00:16.6]} 46. Qxh6+ {[%clk 0:00:15.7]} 46... Bxh6 {[%clk 0:00:13.2]} 47. Kxg3
{[%clk 0:00:17.6]} 47... Kf6 {[%clk 0:00:14.1]} 48. Bd7 {[%clk 0:00:19.5]} 48...
Bd2 {[%clk 0:00:15.1]} 49. Bc6 {[%clk 0:00:21.4]} 49... Bxb4 {[%clk 0:00:16.6]}
50. Kf3 {[%clk 0:00:16.9]} 50... Kg5 {[%clk 0:00:17.3]} 51. Bd7 {[%clk
0:00:17.9]} 51... Kh4 {[%clk 0:00:17.7]} 52. Bc8 {[%clk 0:00:19.3]} 52... Bc5
{[%clk 0:00:18.4]} 53. Bd7 {[%clk 0:00:18.8]} 53... Bb4 {[%clk 0:00:19.6]} 54.
Bc8 {[%clk 0:00:19.7]} 54... Ba5 {[%clk 0:00:20.5]} 55. Bd7 {[%clk 0:00:20.5]}
55... Be1 {[%clk 0:00:20.1]} 56. Bc8 {[%clk 0:00:20.1]} 56... Bd2 {[%clk
0:00:20.4]} 57. Bd7 {[%clk 0:00:02.5]} 57... Bb4 {[%clk 0:00:22.3]} 58. Bc8
{[%clk 0:00:03.8]} 58... Bc5 {[%clk 0:00:24.2]} 59. Bd7 {[%clk 0:00:05.4]} 59...
Kg5 {[%clk 0:00:26]} 60. Bc8 {[%clk 0:00:06.6]} 60... Kf6 {[%clk 0:00:27.9]} 61.
Bd7 {[%clk 0:00:07.9]} 61... Ke7 {[%clk 0:00:29.8]} 62. Bc6 {[%clk 0:00:09.6]}
62... Kd8 {[%clk 0:00:31.7]} 63. Kg4 {[%clk 0:00:11.1]} 63... Ke7 {[%clk
0:00:33.6]} 64. Kf3 {[%clk 0:00:12.5]} 64... Bb4 {[%clk 0:00:35.2]} 65. Kg4
{[%clk 0:00:14]} 65... Bc5 {[%clk 0:00:37.1]} 66. Bb7 {[%clk 0:00:15.4]} 66...
Kf6 {[%clk 0:00:39]} 67. Bc6 {[%clk 0:00:17.3]} 67... Kg7 {[%clk 0:00:40.4]} 68.
Bb7 {[%clk 0:00:18.8]} 68... Kf7 {[%clk 0:00:42.3]} 69. Kf5 {[%clk 0:00:20.1]}
69... Ke7 {[%clk 0:00:43.2]} 70. Bc6 {[%clk 0:00:21.6]} 70... Bb4 {[%clk
0:00:44.1]} 71. Bb7 {[%clk 0:00:21.4]} 71... Kf7 {[%clk 0:00:28.9]} 72. Kg5
{[%clk 0:00:18.1]} 72... Kg7 {[%clk 0:00:29.3]} 73. Kh5 {[%clk 0:00:19.5]} 73...
Kf6 {[%clk 0:00:29.8]} 74. Bc6 {[%clk 0:00:20.8]} 74... Bd2 {[%clk 0:00:30.3]}
75. Bb7 {[%clk 0:00:21.6]} 75... Ke7 {[%clk 0:00:30.7]} 76. Bc6 {[%clk
0:00:22.6]} 76... Kd8 {[%clk 0:00:31.4]} 77. Kg6 {[%clk 0:00:24]} 77... Bc3
{[%clk 0:00:31.9]} 78. Kf7 {[%clk 0:00:25.4]} 78... Bb4 {[%clk 0:00:33]} 79. Bb7
{[%clk 0:00:24.9]} 79... Be1 {[%clk 0:00:33.5]} 80. Bc6 {[%clk 0:00:25.7]} 80...
Bh4 {[%clk 0:00:35.4]} 81. Kf8 {[%clk 0:00:26.9]} 81... Kc8 {[%clk 0:00:35.9]}
82. Ke8 {[%clk 0:00:28]} 82... Bg5 {[%clk 0:00:35.9]} 1/2-1/2